bitfinex-derivatives/quotes_SOLF0:USTF0_20250919
["timestamp","ask_amount","ask_price","bid_price","bid_amount"]
[1758249525544,98.56,247.25,247.19,6.55]
[1758249525745,1.85,247.24,247.19,6.55]
[1758249525944,100.41,247.25,247.19,6.55]
[1758249528444,98.56,247.25,247.18,0.03077886]
[1758249528651,1.85,247.22,247.18,0.03077886]
[1758249529345,2.08524004,247.23,247.18,0.03077886]
[1758249529549,1.85,247.22,247.18,0.03077886]
[1758249529749,2.08524004,247.23,247.18,0.03077886]
[1758249530548,98.56,247.25,247.18,0.03077886]
[1758249530747,1.85,247.24,247.18,0.03077886]
[1758249531144,98.56,247.23,247.18,0.03077886]
[1758249531550,1.85,247.22,247.18,0.03077886]
[1758249532351,98.56,247.23,247.18,0.03077886]
[1758249532551,1.85,247.22,247.18,0.03077886]
[1758249532745,98.56,247.23,247.18,0.03077886]
[1758249532951,1.85,247.22,247.18,0.03077886]
[1758249533452,2.08524004,247.2,247.18,0.03077886]
[1758249533652,1.85,247.19,247.18,0.03077886]
[1758249535355,2.25,247.19,247.18,0.03077886]
[1758249538753,100.81,247.19,247.18,0.03077886]
[1758249539560,103.49250946,247.19,247.04,7.04]
[1758249539754,1.82,247.16,247.04,7.04]
[1758249540760,0.0301903,247.12,247.07,7.04]
[1758249541060,9.8701903,247.12,247.06,2.08524004]
[1758249541263,0.0301903,247.12,247.07,7.04]
[1758249542051,0.0301903,247.12,247.06,2.08524004]
[1758249542256,0.0301903,247.12,247.07,7.04]
[1758249542554,0.0301903,247.12,247.06,2.08524004]
[1758249542760,0.0301903,247.12,247.08,7.04]
[1758249542955,0.0301903,247.12,247.06,2.08524004]
[1758249543957,0.0301903,247.12,247.06,9.12524004]
[1758249545555,0.0301903,247.12,247.06,7.04]
[1758249546363,0.0301903,247.12,247.06,9.12524004]
[1758249546564,0.0301903,247.12,247.07,7.04]
[1758249546965,0.0301903,247.12,247.06,2.08524004]
[1758249547165,0.0301903,247.12,247.07,7.04]
[1758249547366,0.0301903,247.12,247.06,2.08524004]
[1758249549866,0.0301903,247.12,247.07,7.04]
[1758249550067,0.0301903,247.12,247.09,2.08524004]
[1758249550263,0.0301903,247.12,247.1,7.04]
[1758249550662,0.0301903,247.12,247.09,2.08524004]
[1758249550863,0.0301903,247.12,247.1,7.04]
[1758249551056,0.0301903,247.12,247.07,7.04]
[1758249551867,0.0301903,247.12,247.08,1.33424571]
[1758249552266,0.0301903,247.12,247.09,7.04]
[1758249553069,0.0301903,247.12,247.08,1.33424571]
[1758249553571,0.0301903,247.12,247.09,7.04]
[1758249554071,0.0301903,247.12,247.08,1.33424571]
[1758249554266,0.0301903,247.12,247.09,7.04]
[1758249554467,0.0301903,247.12,247.08,1.33424571]
[1758249554868,0.0301903,247.12,247.09,7.04]
[1758249555069,0.0301903,247.12,247.08,1.33424571]
[1758249555571,0.0301903,247.12,247.09,7.04]
[1758249556272,0.0301903,247.12,247.08,1.33424571]
[1758249556872,0.0301903,247.12,247.09,7.04]
[1758249557268,0.0301903,247.12,247.08,1.33424571]
[1758249557667,0.0301903,247.12,247.09,7.04]
[1758249557876,0.0301903,247.12,247.08,1.33424571]
[1758249558271,0.0301903,247.12,247.09,7.04]
[1758249558572,0.0301903,247.12,247.08,1.33424571]
[1758249559270,0.0301903,247.12,247.09,7.04]
[1758249559474,0.0301903,247.12,247.08,1.33424571]
[1758249559675,0.0301903,247.12,247.09,7.04]
[1758249560372,0.0301903,247.12,247.08,1.33424571]
[1758249560774,0.0301903,247.12,247.09,7.04]
[1758249560976,0.0301903,247.12,247.1,1.33424571]
[1758249561177,0.0301903,247.12,247.11,7.04]
[1758249561477,1.33424571,247.17,247.11,7.04]
[1758249561667,0.02997427,247.14,247.11,7.04]
[1758249561975,0.02997427,247.14,247.1,1.33424571]
[1758249562371,0.02997427,247.14,247.11,7.04]
[1758249562575,0.02997427,247.14,247.1,1.33424571]
[1758249562975,0.02997427,247.14,247.11,7.04]
[1758249563177,0.02997427,247.14,247.02,7.04]
[1758249563372,0.02997427,247.14,247.09,1.33424571]
[1758249563573,0.02997427,247.14,247.1,7.04]
[1758249563773,0.02997427,247.14,247.09,1.33424571]
[1758249563975,0.02997427,247.14,247.1,7.04]
[1758249564472,0.02997427,247.14,247.09,1.33424571]
[1758249564677,0.02997427,247.14,247.1,7.04]
[1758249565578,0.02997427,247.14,247.09,1.33424571]
[1758249565778,0.02997427,247.14,247.1,7.04]
[1758249565978,0.02997427,247.14,247.09,1.33424571]
[1758249566379,0.02997427,247.14,247.1,7.04]
[1758249567381,0.02997427,247.14,247.09,1.33424571]
[1758249567772,0.02997427,247.14,247.1,7.04]
[1758249567970,0.02997427,247.14,247.09,1.33424571]
[1758249568379,0.02997427,247.14,247.1,6.86]
[1758249568573,0.02997427,247.14,247.07,6.86]
[1758249576086,0.02997427,247.14,247.09,6.86]
[1758249582300,0.02997427,247.14,247.09,8.19424571]
[1758249582795,0.02997427,247.14,247.12,6.86]
[1758249587206,0.02997427,247.14,247.1,6.86]
[1758249602115,1.84997427,247.14,247.08,0.02845966]
[1758249602419,1.84997427,247.14,247.08,6.65845966]
[1758249602420,1.82,247.11,247.08,6.65845966]
[1758249602616,1.82,247.11,247.09,6.63]
[1758249602818,1.33424571,247.1,247.08,0.02845966]
[1758249603019,3.15424571,247.1,247.08,0.02845966]
[1758249604318,1.33424571,247.12,247.08,0.02845966]
[1758249604621,1.33424571,247.12,247.09,6.63]
[1758249605117,1.84997427,247.14,247.08,0.02845966]
[1758249605326,0.02997427,247.14,247.09,6.63]
[1758249605921,0.02997427,247.14,247.08,1.36270537]
[1758249606121,0.02997427,247.14,247.09,6.63]
[1758249606322,0.02997427,247.14,247.08,1.36270537]
[1758249606621,1.84997427,247.14,247.09,6.63]
[1758249606822,3.18421998,247.14,247.08,6.65845966]
[1758249608818,0.02997427,247.14,247.08,6.65845966]
[1758249609014,0.02997427,247.14,247.1,6.63]
[1758249609521,0.02997427,247.14,247.12,6.63]
[1758249610120,0.02997427,247.14,247.11,1.33424571]
[1758249610315,0.02997427,247.14,247.12,6.63]
[1758249610923,0.02997427,247.14,247.11,1.33424571]
[1758249611423,0.02997427,247.14,247.12,6.63]
[1758249611625,0.02997427,247.14,247.11,1.33424571]
[1758249612325,0.02997427,247.14,247.12,6.63]
[1758249617624,0.02997427,247.14,247.11,6.63]
[1758249618927,0.02997427,247.14,247.1,5.48513111]
[1758249619132,0.02997427,247.14,247.11,6.63]
[1758249619334,0.02997427,247.14,247.08,3.42984279]
[1758249619735,0.02997427,247.14,247.09,6.63]
[1758249619949,1.82,247.13,247.09,6.63]
[1758249620127,0.02997427,247.14,247.09,6.63]
[1758249620533,1.82,247.13,247.09,6.63]
[1758249620832,0.02997427,247.14,247.09,6.63]
[1758249621134,0.02997427,247.14,247.1,2.08374798]
[1758249621334,0.02997427,247.14,247.11,6.63]
[1758249621534,0.02997427,247.14,247.09,6.63]
[1758249621735,0.02997427,247.14,247.09,10.03138313]
[1758249621933,0.02997427,247.14,247.1,6.63]
[1758249624034,0.02997427,247.14,247.08,3.42984279]
[1758249624234,0.02997427,247.14,247.09,6.63]
[1758249624435,0.02997427,247.14,247.08,3.42984279]
[1758249624634,0.02997427,247.14,247.09,6.63]
[1758249625838,0.02997427,247.14,247.08,3.42984279]
[1758249626235,0.02997427,247.14,247.09,6.63]
[1758249626835,1.84997427,247.14,247.1,6.63]
[1758249627740,1.82,247.13,247.1,6.63]
[1758249628141,2.11372225,247.14,247.08,0.02845966]
[1758249628540,1.81,247.13,247.08,0.02845966]
[1758249628742,3.89374798,247.11,247.08,0.02845966]
[1758249628941,1.81,247.1,247.08,0.02845966]
[1758249631742,2.08374798,247.11,247.08,0.02845966]
[1758249632149,1.81,247.1,247.08,0.02845966]
[1758249632940,2.08374798,247.11,247.08,0.02845966]
[1758249633146,1.81,247.1,247.08,0.02845966]
[1758249633550,2.08374798,247.11,247.08,0.02845966]
[1758249633849,1.81,247.1,247.08,0.02845966]
[1758249634049,2.08374798,247.11,247.08,0.02845966]
[1758249634251,1.81,247.1,247.08,0.02845966]
[1758249634453,1.81,247.09,247.08,0.02845966]
[1758249644067,3.89374798,247.09,247.08,0.02845966]
[1758249653273,0.02997427,247.14,247.08,0.02845966]
[1758249660879,0.02997427,247.14,247.1,2.08374798]
[1758249661284,0.02997427,247.14,247.11,6.88]
[1758249661684,0.02997427,247.14,247.1,2.08374798]
[1758249661879,0.02997427,247.14,247.11,6.88]
[1758249662785,0.02997427,247.14,247.1,2.08374798]
[1758249663080,0.02997427,247.14,247.09,6.88]
[1758249663778,0.02997427,247.14,247.08,0.02845966]
[1758249664385,0.02997427,247.14,247.09,6.88]
[1758249665287,0.02997427,247.14,247.08,0.02845966]
[1758249666183,0.02997427,247.14,247.09,6.88]
[1758249666983,0.02997427,247.14,247.08,0.02845966]
[1758249667181,0.02997427,247.14,247.09,6.88]
[1758249667382,0.02997427,247.14,247.08,0.02845966]
[1758249668387,0.02997427,247.14,247.09,6.88]
[1758249668884,0.02997427,247.14,247.08,0.02845966]
[1758249669392,0.02997427,247.14,247.09,6.88]
[1758249669892,0.02997427,247.14,247.08,0.02845966]
[1758249670090,0.02997427,247.14,247.09,6.88]
[1758249670290,0.02997427,247.14,247.08,0.02845966]
[1758249670990,0.02997427,247.14,247.09,6.88]
[1758249671398,0.02997427,247.14,247.08,0.02845966]
[1758249671588,0.02997427,247.14,247.09,6.88]
[1758249671784,0.02997427,247.14,247.08,0.02845966]
[1758249671986,0.02997427,247.14,247.09,6.88]
[1758249672395,0.02997427,247.14,247.13,6.88]
[1758249673788,0.02997427,247.14,247.13,8.21354395]
[1758249683918,1.82,247.26,247.13,1.73354395]
[1758249684218,3.15354395,247.26,247.18,6.88]
[1758249685211,3.15354395,247.26,247.2,0.02689952]
[1758249686316,1.85,247.24,247.2,6.90689952]
[1758249686810,1.85,247.24,247.21,6.88]
[1758249691613,1.85,247.28,247.21,6.44]
[1758249691815,1.33354395,247.27,247.21,6.44]
[1758249698330,1.33354395,247.25,247.21,6.44]
[1758249698520,3.18354395,247.25,247.21,6.44]
[1758249698721,3.18354395,247.25,247.2,0.02689952]
[1758249698923,3.18354395,247.25,247.21,6.44]
[1758249699123,3.18354395,247.25,247.2,0.02689952]
[1758249699324,3.18354395,247.25,247.21,6.44]
[1758249699525,3.18354395,247.25,247.2,0.02689952]
[1758249700029,3.18354395,247.25,247.21,6.44]
[1758249700327,3.18354395,247.25,247.2,0.02689952]
[1758249700928,3.18354395,247.25,247.21,6.44]
[1758249701228,3.18354395,247.25,247.2,0.02689952]
[1758249701423,3.18354395,247.25,247.21,6.44]
[1758249701629,3.18354395,247.25,247.2,0.02689952]
[1758249701828,1.85,247.25,247.2,0.02689952]
[1758249702029,3.18354395,247.25,247.2,0.02689952]
[1758249702627,98.38,247.3,247.2,0.02689952]
[1758249702823,1.33354395,247.27,247.2,0.02689952]
[1758249703031,1.85,247.28,247.21,6.44]
[1758249703235,1.33354395,247.27,247.21,6.44]
[1758249706235,1.85,247.28,247.21,7.77354395]
[1758249706420,99.67354395,247.29,247.21,7.77354395]
[1758249706626,1.33354395,247.29,247.21,7.77354395]
[1758249709229,1.33354395,247.29,247.21,6.44]
[1758249709430,1.33354395,247.29,247.21,7.77354395]
[1758249710635,1.33354395,247.29,247.21,6.44]
[1758249712332,1.33354395,247.29,247.22,1.33354395]
[1758249712537,1.33354395,247.29,247.23,6.44]
[1758249713136,101.52354395,247.31,247.23,6.44]
[1758249713536,1.33354395,247.3,247.23,6.44]
[1758249717140,100.19,247.31,247.23,6.44]
[1758249717444,1.33354395,247.3,247.23,6.44]
[1758249721945,99.65354395,247.3,247.23,6.44]
[1758249722137,1.33354395,247.28,247.23,6.44]
[1758249722342,1.33354395,247.28,247.21,6.63]
[1758249727035,1.85,247.29,247.21,6.63]
[1758249727243,3.18354395,247.29,247.21,6.63]
[1758249727438,1.33354395,247.27,247.21,6.63]
[1758249727644,1.33354395,247.23,247.2,0.02689952]
[1758249727846,3.18354395,247.21,247.2,0.02689952]
[1758249735749,1.85,247.21,247.2,0.02689952]
[1758249736551,98.32,247.25,247.2,0.02689952]
[1758249736753,100.17,247.25,247.2,0.02689952]
[1758249737051,100.17,247.25,247.21,6.63]
[1758249737950,98.32,247.25,247.2,0.02689952]
[1758249738347,1.85,247.24,247.2,0.02689952]
[1758249738544,98.32,247.25,247.2,0.02689952]
[1758249739249,1.85,247.24,247.2,0.02689952]
[1758249739653,98.32,247.25,247.2,0.02689952]
[1758249739845,1.85,247.24,247.2,0.02689952]
[1758249740051,98.32,247.25,247.2,0.02689952]
[1758249740345,1.85,247.23,247.2,0.02689952]
[1758249740546,98.32,247.22,247.21,6.63]
[1758249741154,1.85,247.27,247.21,6.63]
[1758249741348,1.85,247.25,247.21,6.63]
[1758249741547,1.85,247.25,247.2,0.02689952]
[1758249741743,98.32,247.26,247.2,0.02689952]
[1758249741948,1.85,247.25,247.2,0.02689952]
[1758249742244,98.32,247.26,247.2,0.02689952]
[1758249742652,1.85,247.25,247.2,0.02689952]
[1758249742852,100.17,247.26,247.2,0.02689952]
[1758249744255,98.32,247.25,247.2,0.02689952]
[1758249744459,1.85,247.24,247.2,0.02689952]
[1758249744657,98.32,247.25,247.2,0.02689952]
[1758249745156,1.85,247.24,247.2,0.02689952]
[1758249745656,1.85,247.22,247.2,0.02689952]
[1758249751158,2.08390996,247.23,247.2,0.02689952]
[1758249751558,1.85,247.22,247.2,0.02689952]
[1758249751758,2.08390996,247.23,247.2,0.02689952]
[1758249751958,1.85,247.22,247.2,0.02689952]
[1758249752255,2.08390996,247.23,247.2,0.02689952]
[1758249752955,1.85,247.22,247.2,0.02689952]
[1758249753152,2.08390996,247.23,247.2,0.02689952]
[1758249753353,1.85,247.22,247.2,0.02689952]
[1758249753654,2.08390996,247.23,247.2,0.02689952]
[1758249753851,1.85,247.22,247.2,0.02689952]
[1758249757060,3.93390996,247.22,247.2,0.02689952]
[1758249757362,4.53250946,247.23,247.2,0.02689952]
[1758249757363,100.17,247.21,247.2,0.02689952]
[1758249761159,2.08390996,247.25,247.2,0.02689952]
[1758249761160,1.85,247.24,247.2,0.02689952]
[1758249761365,100.17,247.23,247.2,6.62689952]
[1758249761663,1.85,247.22,247.2,0.02689952]
[1758249762164,98.32,247.23,247.2,0.02689952]
[1758249762466,1.85,247.22,247.2,0.02689952]
[1758249763155,22.64,247.21,247.2,0.02689952]
[1758249763356,1.85,247.26,247.2,6.62689952]
[1758249763563,1.85,247.26,247.21,6.6]
[1758249763756,1.85,247.26,247.2,0.02689952]
[1758249763959,1.85,247.29,247.21,8.68390996]
[1758249764158,98.32,247.28,247.21,8.68390996]
[1758249764663,1.85,247.29,247.21,8.68390996]
[1758249764856,98.32,247.28,247.22,6.6]
[1758249765060,1.85,247.29,247.22,6.6]
[1758249765261,98.32,247.28,247.22,6.6]
[1758249766367,1.85,247.29,247.22,6.6]
[1758249766562,98.3,247.28,247.22,6.6]
[1758249769669,1.85,247.29,247.22,6.6]
[1758249769869,98.3,247.28,247.22,6.6]
[1758249771568,98.3,247.27,247.21,6.6]
[1758249773274,1.85,247.29,247.21,6.6]
[1758249773472,98.3,247.26,247.2,0.02689952]
[1758249774070,98.3,247.26,247.21,6.6]
[1758249774274,98.3,247.26,247.2,0.02689952]
[1758249774571,98.3,247.27,247.23,6.6]
[1758249774771,98.3,247.27,247.22,2.08390996]
[1758249775174,98.3,247.27,247.22,2.11023127]
[1758249775773,98.28,247.28,247.23,7.01]
[1758249775973,98.28,247.28,247.22,2.11023127]
[1758249776170,98.28,247.28,247.22,0.02632131]
[1758249776375,100.12,247.28,247.22,0.02632131]
[1758249776676,1.84,247.26,247.22,7.03632131]
[1758249776876,1.84,247.26,247.23,7.01]
[1758249777477,100.12,247.27,247.23,7.01]
[1758249777878,100.12,247.27,247.22,0.02632131]
[1758249778077,100.12,247.27,247.23,7.03]
[1758249778379,98.28,247.27,247.22,0.02632131]
[1758249778875,1.84,247.26,247.22,0.02632131]
[1758249779475,98.28,247.27,247.22,0.02632131]
[1758249779671,1.84,247.26,247.22,0.02632131]
[1758249779872,98.28,247.27,247.22,0.02632131]
[1758249780375,1.84,247.26,247.22,0.02632131]
[1758249780687,1.84,247.23,247.22,0.02632131]
[1758249781078,3.92390996,247.23,247.22,0.02632131]
[1758249786385,98.28,247.24,247.22,7.05632131]
[1758249786586,1.84,247.26,247.22,7.05632131]
[1758249786986,98.3,247.25,247.22,7.05632131]
[1758249787189,100.14,247.25,247.22,7.05632131]
[1758249787582,98.3,247.25,247.22,0.02632131]
[1758249789780,1.84,247.24,247.22,0.02632131]
[1758249791080,98.3,247.25,247.22,0.02632131]
[1758249791285,1.84,247.24,247.22,0.02632131]
[1758249792090,98.3,247.25,247.22,0.02632131]
[1758249792397,1.84,247.24,247.22,0.02632131]
[1758249792781,98.3,247.25,247.22,0.02632131]
[1758249793388,1.84,247.23,247.22,0.02632131]
[1758249797891,1.7339747,247.23,247.11,7.03]
[1758249798085,1.3339747,247.13,247.11,7.03]
[1758249798694,1.3339747,247.13,247.04,7.03]
[1758249800400,3.1739747,247.2,247.1,7.03]
[1758249800592,14.58,247.19,247.1,7.03]
[1758249802396,1.84,247.18,247.1,7.03]
[1758249802596,1.3339747,247.17,247.1,7.03]
[1758249803401,1.3339747,247.14,247.06,7.03]
[1758249805005,3.28,247.14,247.06,7.03]
[1758249807007,1.84,247.13,247.06,7.03]
[1758249807598,3.28,247.14,247.06,7.03]
[1758249807800,1.84,247.16,247.09,7.03]
[1758249808001,0.03043409,247.12,247.08,1.3339747]
[1758249808205,0.03043409,247.12,247.11,6.7]
[1758249810906,1.84,247.22,247.11,7.1]
[1758249811112,1.84,247.22,247.15,1.3339747]
[1758249811409,1.84,247.22,247.16,6.7]
[1758249812105,1.84,247.22,247.17,0.03031643]
[1758249812304,31.81,247.23,247.17,6.73031643]
[1758249813709,31.81,247.23,247.18,1.3339747]
[1758249814011,1.87,247.23,247.19,6.7]
[1758249815511,47.66,247.24,247.19,1.3339747]
[1758249815905,1.87,247.23,247.19,1.3339747]
[1758249816505,5.86648416,247.28,247.19,1.3339747]
[1758249816718,69.29,247.27,247.19,1.3339747]
[1758249817008,69.29,247.27,247.17,0.03031643]
[1758249817212,1.87,247.27,247.17,0.03031643]
[1758249817511,1.87,247.25,247.17,0.03031643]
[1758249818313,3.2039747,247.25,247.17,0.03031643]
[1758249822214,98.32,247.24,247.17,0.03031643]
[1758249822914,98.32,247.24,247.17,1.36429113]
[1758249824115,1.87,247.23,247.17,1.36429113]
[1758249828421,98.3,247.22,247.17,1.36429113]
[1758249828622,1.87,247.21,247.17,8.06429113]
[1758249829121,1.87,247.21,247.18,6.7]
[1758249830420,1.87,247.21,247.17,1.36429113]
[1758249830620,1.87,247.21,247.18,6.7]
[1758249830919,1.87,247.21,247.17,1.36429113]
[1758249831119,1.87,247.21,247.18,6.7]
[1758249833226,98.3,247.22,247.17,0.03031643]
[1758249833425,7.73648416,247.25,247.18,6.7]
[1758249833721,98.3,247.21,247.18,6.7]
[1758249834115,98.3,247.21,247.17,0.03031643]
[1758249834321,98.3,247.21,247.18,6.7]
[1758249834721,98.3,247.21,247.18,6.51]
[1758249835222,98.3,247.21,247.17,0.03031643]
[1758249835615,98.3,247.21,247.18,6.51]
[1758249836422,98.3,247.21,247.17,0.03031643]
[1758249836731,98.3,247.21,247.18,6.51]
[1758249838423,100.17,247.21,247.18,6.51]
[1758249842828,4.53250946,247.27,247.17,0.03031643]
[1758249843028,101.5039747,247.26,247.18,8.0639747]
[1758249843833,1.87,247.25,247.17,0.03031643]
[1758249844033,1.87,247.23,247.17,0.03031643]
[1758249848832,1.3339747,247.22,247.17,0.03031643]
[1758249849227,1.87,247.21,247.17,0.03031643]
[1758249849431,1.3339747,247.22,247.17,0.03031643]
[1758249849931,1.87,247.21,247.17,0.03031643]
[1758249850329,1.3339747,247.22,247.17,0.03031643]
[1758249852541,1.87,247.21,247.17,0.03031643]
[1758249852836,1.87,247.2,247.17,0.03031643]
[1758249853139,1.3339747,247.21,247.17,0.03031643]
[1758249853539,1.87,247.2,247.17,0.03031643]
[1758249853739,1.3339747,247.21,247.17,0.03031643]
[1758249854142,1.87,247.2,247.17,0.03031643]
[1758249854442,1.3339747,247.21,247.17,0.03031643]
[1758249854937,1.87,247.2,247.17,0.03031643]
[1758249855343,1.3339747,247.21,247.17,0.03031643]
[1758249856742,1.87,247.2,247.17,0.03031643]
[1758249857437,1.3339747,247.21,247.17,0.03031643]
[1758249857748,1.87,247.18,247.17,0.03031643]
[1758249880567,4.53250946,247.22,247.17,6.90031643]
[1758249880769,100.15,247.21,247.17,0.03031643]
[1758249880968,1.87,247.21,247.18,6.87]
[1758249881167,1.87,247.22,247.15,6.87]
[1758249881372,1.87,247.22,247.11,6.87]
[1758249881572,1.87,247.22,247.17,0.02815981]
[1758249881773,6.40250946,247.22,247.17,0.02815981]
[1758249881973,1.87,247.19,247.17,0.02815981]
[1758249887667,46.02,247.18,247.17,0.02815981]
[1758249888071,47.89,247.18,247.17,0.02815981]
[1758249893277,1.87,247.18,247.17,0.02815981]
[1758249893478,100.15,247.18,247.17,0.02815981]
[1758249894679,1.87,247.18,247.17,0.02815981]
[1758249894881,100.15,247.18,247.17,0.02815981]
[1758249901886,4.53250946,247.2,247.17,0.02815981]
[1758249902082,4.53250946,247.21,247.17,0.02815981]
[1758249902280,98.26,247.2,247.17,0.02815981]
[1758249902480,98.26,247.2,247.18,6.82]
[1758249902679,4.53250946,247.23,247.19,6.82]
[1758249902883,98.26,247.2,247.19,6.82]
[1758249903087,98.26,247.2,247.19,10.48428556]
[1758249905089,6.40250946,247.25,247.2,6.82]
[1758249905287,98.26,247.24,247.22,6.82]
[1758249905488,98.9642111,247.24,247.23,10.48428556]
[1758249906190,100.8342111,247.24,247.23,3.66428556]
[1758249907087,98.9642111,247.24,247.19,6.82]
[1758249907291,1.87,247.23,247.19,6.82]
[1758249907486,98.9642111,247.24,247.17,0.02815981]
[1758249907692,98.9642111,247.24,247.18,6.82]
[1758249909692,98.26,247.23,247.18,6.82]
[1758249910201,0.7042111,247.24,247.18,6.82]
[1758249910399,22.08,247.23,247.18,6.82]
[1758249910697,22.08,247.23,247.18,2.08410345]
[1758249911699,22.08,247.23,247.19,6.82]
[1758249912393,22.08,247.23,247.18,2.08410345]
[1758249912590,22.08,247.23,247.19,6.82]
[1758249912994,22.08,247.23,247.18,2.08410345]
[1758249913297,0.7042111,247.24,247.18,2.08410345]
[1758249913499,38.0042111,247.24,247.18,2.08410345]
[1758249914201,38.0042111,247.24,247.19,6.82]
[1758249914901,38.0042111,247.24,247.18,2.08410345]
[1758249915494,38.0042111,247.24,247.19,6.82]
[1758249915901,38.0042111,247.24,247.18,8.90410345]
[1758249916301,38.0042111,247.24,247.18,6.82]
[1758249916703,39.8742111,247.24,247.18,6.82]
[1758249926208,39.8742111,247.24,247.18,8.15320884]
[1758249926405,2.5742111,247.24,247.18,8.15320884]
[1758249928815,1.87,247.23,247.17,0.02815981]
[1758249929015,3.20320884,247.23,247.17,0.02815981]
[1758249930717,1.87,247.23,247.17,6.94815981]
[1758249931813,1.87,247.23,247.17,0.02815981]
[1758249932510,3.20320884,247.23,247.17,0.02815981]
[1758249937816,0.7042111,247.24,247.17,8.28136865]
[1758249938017,1.87,247.27,247.21,1.33320884]
[1758249938219,3.20320884,247.31,247.22,6.92]
[1758249938418,0.70414698,247.29,247.22,6.92]
[1758249938818,1.87,247.28,247.23,0.0261296]
[1758249939013,1.87,247.26,247.23,0.0261296]
[1758249939217,1.33320884,247.27,247.23,0.0261296]
[1758249939515,1.87,247.28,247.23,0.0261296]
[1758249939719,1.87,247.25,247.23,0.0261296]
[1758249940817,1.33320884,247.26,247.23,0.0261296]
[1758249941123,1.87,247.25,247.23,0.0261296]
[1758249941323,1.33320884,247.26,247.23,0.0261296]
[1758249941618,1.87,247.25,247.23,0.0261296]
[1758249941825,1.33320884,247.26,247.23,0.0261296]
[1758249942422,1.87,247.25,247.23,0.0261296]
[1758249943524,1.33320884,247.26,247.23,0.0261296]
[1758249943714,1.87,247.25,247.23,0.0261296]
[1758249944322,1.33320884,247.26,247.23,0.0261296]
[1758249944815,1.87,247.25,247.23,0.0261296]
[1758249946515,5.8657183,247.28,247.23,0.0261296]
[1758249947224,98.2,247.27,247.23,0.0261296]
[1758249947620,1.87,247.26,247.23,0.0261296]
[1758249947821,100.07,247.26,247.23,6.9461296]
[1758249948718,1.87,247.25,247.23,6.9461296]
[1758249948921,0.70414698,247.29,247.23,8.27933844]
[1758249949228,0.70414698,247.29,247.28,6.92]
[1758249949421,1.87,247.32,247.28,6.92]
[1758249949616,103.41652823,247.33,247.27,1.33320884]
[1758249949924,105.28652823,247.33,247.27,1.33320884]
[1758249951031,100.75401877,247.33,247.27,1.33320884]
[1758249952031,98.18,247.32,247.27,1.33320884]
[1758249952233,1.87,247.31,247.27,8.25320884]
[1758249952733,1.87,247.31,247.27,1.33320884]
[1758249952930,98.18,247.32,247.28,6.92]
[1758249953132,98.18,247.32,247.27,1.33320884]
[1758249953329,100.05,247.32,247.28,6.92]
[1758249953728,100.05,247.32,247.27,1.35886965]
[1758249953931,100.05,247.32,247.29,1.33320884]
[1758249954131,98.18,247.32,247.29,8.25320884]
[1758249954331,1.87,247.31,247.29,1.33320884]
[1758249954530,1.87,247.31,247.27,1.35886965]
[1758249954728,98.18,247.32,247.27,1.35886965]
[1758249955027,98.18,247.32,247.27,0.02566081]
[1758249955232,1.86,247.31,247.27,0.02566081]
[1758249955431,104.0457183,247.32,247.27,0.02566081]
[1758249955628,1.86,247.31,247.27,0.02566081]
[1758249955831,1.33320884,247.3,247.27,0.02566081]
[1758249956233,1.86,247.29,247.27,0.02566081]
[1758249956730,6.39250946,247.29,247.27,0.02566081]
[1758249956930,1.86,247.29,247.27,0.02566081]
[1758249958135,5.8657183,247.3,247.27,0.02566081]
[1758249958834,1.87,247.29,247.27,0.02566081]
[1758249959032,5.8657183,247.3,247.27,0.02566081]
[1758249959333,1.87,247.29,247.27,0.02566081]
[1758249959729,5.8657183,247.3,247.27,0.02566081]